fUSD/lending_fUSD_20250304
["ID","MTS","AMOUNT","RATE_DAILY","PERIOD"]
[355290051,1741056647975,-2825.89,0.00012998,2]
[355290053,1741056647985,-500.0,0.00012998,2]
[355290055,1741056647995,-2246.78,0.00012998,2]
[355290058,1741056648005,-891.83,0.00012998,2]
[355290060,1741056648015,-2126.08,0.00012998,2]
[355290062,1741056648024,-869.97,0.00012998,2]
[355290063,1741056648034,-500.0,0.00012998,2]
[355290065,1741056648044,-1830.53,0.00012998,2]
[355290067,1741056648053,-2740.33,0.00012998,2]
[355290069,1741056648063,-500.0,0.00012998,2]
[355290071,1741056648073,-500.0,0.00012998,2]
[355290073,1741056648083,-555.46,0.00012998,2]
[355290075,1741056648093,-2121.42,0.00012998,2]
[355290077,1741056648103,-6811.58,0.00012998,2]
[355290079,1741056648113,-1945.3,0.00012998,2]
[355290081,1741056648123,-500.0,0.00012998,2]
[355290083,1741056648133,-1064.78,0.00012998,2]
[355290085,1741056648143,-674.51,0.00012998,2]
[355290087,1741056648153,-505.25,0.00012998,2]
[355290089,1741056648163,-1159.27,0.00012998,2]
[355290091,1741056648173,-2607.75,0.00012998,2]
[355290093,1741056648183,-704.58,0.00012998,2]
[355290095,1741056648194,-555.61,0.00012998,2]
[355290097,1741056648205,-1262.84,0.00012998,2]
[355290100,1741056648224,-1877.54,0.00012998,2]
[355290102,1741056648235,-799.18,0.00012998,2]
[355290104,1741056648247,-1263.67,0.00012998,2]
[355290106,1741056648257,-500.0,0.00012998,2]
[355290108,1741056648268,-500.0,0.00012998,2]
[355290110,1741056648279,-17575.49,0.00012998,2]
[355290112,1741056648290,-500.0,0.00012998,2]
[355290114,1741056648300,-1127.2,0.00012998,2]
[355290116,1741056648310,-500.0,0.00012998,2]
[355290118,1741056648320,-1767.1,0.00012998,2]
[355290120,1741056648337,-3883.13,0.00012998,2]
[355290122,1741056648347,-500.0,0.00012998,2]
[355290124,1741056648358,-1241.29,0.00012998,2]
[355290126,1741056648368,-1318.9,0.00012998,2]
[355290129,1741056648379,-500.0,0.00012998,2]
[355290131,1741056648390,-823.09,0.00012998,2]
[355290133,1741056648401,-3102.08,0.00012998,2]
[355290134,1741056648411,-500.0,0.00012999,2]
[355290136,1741056648422,-1102.17,0.00012999,2]
[355290138,1741056648432,-629.45,0.00012999,2]
[355290141,1741056648444,-914.13,0.00012999,2]
[355290143,1741056648454,-600.97,0.00012999,2]
[355290145,1741056648471,-683.84,0.00012999,2]
[355290147,1741056648482,-727.16,0.00012999,2]
[355290148,1741056648493,-1238.93,0.00012999,2]
[355290149,1741056648504,-987.36,0.00012999,2]
[355290150,1741056648515,-1247.52,0.00012999,2]
[355290151,1741056648525,-1422.65,0.00012999,2]
[355290152,1741056648536,-500.0,0.00012999,2]
[355290153,1741056648548,-646.81,0.00012999,2]
[355290154,1741056648559,-880.0,0.00012999,2]
[355290155,1741056648570,-500.0,0.00012999,2]
[355290156,1741056648581,-817.19,0.00012999,2]
[355290157,1741056648592,-736.59,0.00012999,2]
[355290158,1741056648602,-931.45,0.00012999,2]
[355290159,1741056648613,-814.49,0.00012999,2]
[355290160,1741056648623,-786.91,0.00012999,2]
[355290161,1741056648633,-502.22,0.00012999,2]
[355290162,1741056648643,-1095.18,0.00012999,2]
[355290163,1741056648654,-1572.28,0.00012999,2]
[355290164,1741056648665,-748.52,0.00012999,2]
[355290166,1741056648675,-500.0,0.00012999,2]
[355290168,1741056648687,-500.0,0.00012999,2]
[355290170,1741056648697,-500.0,0.00012999,2]
[355290172,1741056648707,-1466.62,0.00012999,2]
[355290174,1741056648721,-636.29,0.00012999,2]
[355290176,1741056648731,-500.0,0.00012999,2]
[355290178,1741056648743,-825.45,0.00012999,2]
[355290198,1741056648956,-476.89246287,0.00012999,2]
[355290201,1741056648975,-790.65,0.00012999,2]
[355290203,1741056648985,-870.72,0.00012999,2]
[355290205,1741056648997,-836.09,0.00012999,2]
[355290207,1741056649007,-1817.65,0.00012999,2]
[355290209,1741056649017,-500.0,0.00012999,2]
[355290211,1741056649027,-1067.84,0.00012999,2]
[355290213,1741056649037,-1318.79,0.00012999,2]
[355290215,1741056649047,-633.72,0.00012999,2]
[355290217,1741056649057,-1350.07,0.00012999,2]
[355290219,1741056649068,-667.22,0.00012999,2]
[355290221,1741056649078,-1470.93,0.00012999,2]
[355290223,1741056649088,-678.99,0.00012999,2]
[355290225,1741056649097,-1532.25,0.00012999,2]
[355290227,1741056649107,-1208.44,0.00012999,2]
[355290229,1741056649117,-1560.21,0.00012999,2]
[355290231,1741056649127,-760.22,0.00012999,2]
[355290233,1741056649137,-1535.59,0.00012999,2]
[355290235,1741056649147,-938.94,0.00012999,2]
[355290237,1741056649157,-1151.48,0.00012999,2]
[355290239,1741056649166,-1719.45,0.00012999,2]
[355290241,1741056649176,-500.0,0.00012999,2]
[355290243,1741056649186,-4706.18,0.00012999,2]
[355290245,1741056649196,-500.0,0.00012999,2]
[355290247,1741056649205,-1005.69,0.00012999,2]
[355290249,1741056649219,-1771.97,0.00012999,2]
[355290251,1741056649230,-531.79,0.00012999,2]
[355290253,1741056649240,-5501.8,0.00012999,2]
[355290255,1741056649250,-1800.27,0.00012999,2]
[355290257,1741056649260,-829.64,0.00012999,2]
[355290259,1741056649270,-2295.3,0.00012999,2]
[355290261,1741056649279,-910.95,0.00012999,2]
[355290263,1741056649289,-5744.25,0.00012999,2]
[355290265,1741056649299,-628.39,0.00012999,2]
[355290267,1741056649309,-1337.15,0.00012999,2]
[355290269,1741056649319,-1468.83,0.00012999,2]
[355290271,1741056649328,-1962.17,0.00012999,2]
[355290273,1741056649338,-7119.45,0.00012999,2]
[355290275,1741056649349,-500.0,0.00012999,2]
[355290277,1741056649358,-3099.15,0.00012999,2]
[355290279,1741056649368,-1044.11,0.00012999,2]
[355290281,1741056649378,-2706.39,0.00012999,2]
[355290283,1741056649388,-1607.55,0.00012999,2]
[355290285,1741056649398,-2499.51,0.00012999,2]
[355290287,1741056649408,-500.0,0.00012999,2]
[355290289,1741056649417,-1032.64,0.00012999,2]
[355290291,1741056649428,-1420.15,0.00012999,2]
[355290293,1741056649437,-613.74,0.00012999,2]
[355290295,1741056649447,-500.0,0.00012999,2]
[355290297,1741056649457,-5096.14,0.00012999,2]
[355290299,1741056649469,-2728.44,0.00012999,2]
[355290301,1741056649479,-731.82,0.00012999,2]
[355290303,1741056649488,-1581.25,0.00012999,2]
[355290305,1741056649498,-9936.12,0.00012999,2]
[355290307,1741056649508,-523.61,0.00012999,2]
[355290309,1741056649517,-3244.86,0.00012999,2]
[355290311,1741056649527,-1193.34,0.00012999,2]
[355290313,1741056649536,-502.28144388,0.00012999,2]
[355290315,1741056649546,-2507.14,0.00012999,2]
[355290317,1741056649555,-513.74213284,0.00012999,2]
[355290319,1741056649565,-1006.91,0.00012999,2]
[355290321,1741056649574,-501.34587272,0.00012999,2]
[355290323,1741056649583,-500.0,0.00012999,2]
[355290325,1741056649593,-661.61,0.00012999,2]
[355290327,1741056649603,-1979.93,0.00012999,2]
[355290329,1741056649612,-3292.59,0.00012999,2]
[355290331,1741056649622,-758.09,0.00012999,2]
[355290333,1741056649632,-1262.93,0.00012999,2]
[355290335,1741056649642,-1843.33,0.00012999,2]
[355290337,1741056649651,-1232.89,0.00012999,2]
[355290339,1741056649662,-2282.98,0.00012999,2]
[355290341,1741056649672,-1583.48,0.00012999,2]
[355290343,1741056649682,-1716.54,0.00012999,2]
[355290345,1741056649692,-774.03,0.00012999,2]
[355290347,1741056649705,-666.75,0.00012999,2]
[355290349,1741056649718,-2314.0,0.00012999,2]
[355290351,1741056649729,-1174.21,0.00012999,2]
[355290353,1741056649739,-2013.52,0.00012999,2]
[355290355,1741056649750,-1044.51,0.00012999,2]
[355290357,1741056649760,-2115.16,0.00012999,2]
[355290359,1741056649770,-2687.66,0.00012999,2]
[355290361,1741056649780,-4236.0,0.00012999,2]
[355290364,1741056649795,-386.39546214,0.00013,2]
[355290366,1741056649809,-579136.47020375,0.00013,2]
[355290414,1741056650280,-8371.45334258,0.00013,2]
[355290606,1741056652463,-271.25903495,0.00012723,2]
[355290608,1741056652477,-242.21370643,0.00012723,2]
[355290610,1741056652488,-635.08,0.00012723,2]
[355290612,1741056652499,-500.0,0.00012724,2]
[355290614,1741056652509,-1319.48,0.00012725,2]
[355290616,1741056652520,-176.58,0.00012998,2]
[355290618,1741056652531,-1319.48,0.00012999,2]
[355290620,1741056652541,-16790.42356983,0.00013,2]
[355290623,1741056652565,-4064.83,0.00013,2]
[355290626,1741056652578,-783.45079787,0.00013,2]
[355290628,1741056652591,-2378.4824062,0.00013,2]
[355290630,1741056652604,-533.59496,0.00013,2]
[355290633,1741056652620,-835.5854567,0.00013,2]
[355291434,1741056717668,900.0,0.0002,120]
[355291442,1741056772418,161.17,0.00012366,2]
[355291443,1741056840761,166.0,0.00011998,2]
[355291444,1741056840954,2000.0,0.00011998,2]
[355291445,1741056931582,266.5795311,0.00012456,2]
[355291446,1741056931886,1000.0,0.00011805,2]
[355291447,1741057072090,222.72,0.00011774,2]
[355291448,1741057078882,337.14,0.00011774,2]
[355291449,1741057162025,234.91,0.00011774,2]
[355291450,1741057510843,150.0,0.00011774,2]
[355291451,1741057537207,150.0,0.00011774,2]
[355291454,1741057566278,150.0,0.00011774,2]
[355291455,1741057568981,250.0,0.0001177,2]
[355291456,1741057587573,23900.0,0.00011762,2]
[355291457,1741057593535,162.93,0.00011774,2]
[355291458,1741057599051,4150.0,0.0002,120]
[355291466,1741057683174,200.0,0.0002,120]
[355291467,1741057691968,-550.0,0.0001255,2]
[355291468,1741057691998,-150.0,0.00012551,2]
[355291469,1741057692027,-150.0,0.00012622,2]
[355291470,1741057692056,-163.9917503,0.00012623,2]
[355291471,1741057692085,-171.931096,0.00012623,2]
[355291472,1741057692114,-96.03966234,0.00012623,2]
[355291473,1741057717071,-63.54947064,0.00012623,2]
[355291474,1741057717099,-726.8762,0.00012623,2]
[355291475,1741057717127,-1686.6156,0.00012623,2]
[355291476,1741057717379,-991.4798,0.00012624,2]
[355291477,1741057717407,-3825.92544647,0.00012624,2]
[355291478,1741057717447,-4508.6107463,0.00012624,2]
[355291479,1741057741869,-550.0,0.00012624,2]
[355291482,1741057801589,150.030412,0.0002,120]
[355291483,1741057831622,-379.77754471,0.00012623,2]
[355291484,1741057831670,-1050.97085529,0.00012623,2]
[355291485,1741057831680,-163.99175029,0.00012654,2]
[355291486,1741057831690,-159.58913298,0.00012654,2]
[355291487,1741057831699,-163.99175029,0.00012685,2]
[355291488,1741057831710,-159.58913298,0.00012685,2]
[355291489,1741057831720,-5029.84650986,0.00012713,2]
[355291490,1741057831730,-5101.50728189,0.00012713,2]
[355291491,1741057831740,-163.99175029,0.00012715,2]
[355291492,1741057831750,-159.58913298,0.00012715,2]
[355291493,1741057831764,-150.0,0.00012721,2]
[355291494,1741057831777,-1379.32,0.00012722,2]
[355291495,1741057831786,-1429.98,0.00012722,2]
[355291496,1741057831796,-1272.06,0.00012722,2]
[355291497,1741057831806,-2020.73,0.00012722,2]
[355291498,1741057831816,-180.10042589,0.00012722,2]
[355291499,1741057831829,-822.73957411,0.00012722,2]
[355291500,1741057831839,-611.50656547,0.00012722,2]
[355291501,1741057831857,-1048.86343453,0.00012722,2]
[355291502,1741057831867,-1698.82,0.00012722,2]
[355291503,1741057831877,-516.329992,0.00012722,2]
[355291504,1741057831888,-116.53633018,0.00012722,2]
[355291505,1741057831908,-1255.24366982,0.00012722,2]
[355291506,1741057831919,-554.15,0.00012722,2]
[355291507,1741057831929,-1066.54,0.00012722,2]
[355291508,1741057831939,-500.0,0.00012722,2]
[355291509,1741057831949,-782.78467019,0.00012722,2]
[355291510,1741057831961,-1099.52532981,0.00012722,2]
[355291511,1741057831972,-933.87419719,0.00012722,2]
[355291512,1741057831984,-1598.81580281,0.00012722,2]
[355291513,1741057831994,-2143.57,0.00012722,2]
[355291514,1741057832003,-1258.15,0.00012722,2]
[355291515,1741057832013,-1087.79,0.00012722,2]
[355291516,1741057832025,-200.74419719,0.00012722,2]
[355291517,1741057832037,-1583.60580281,0.00012722,2]
[355291518,1741057832047,-1488.09919719,0.00012722,2]
[355291519,1741057832059,-322.26793109,0.00012722,2]
[355291520,1741057832084,-718.78087629,0.00012722,2]
[355291523,1741057832122,-1213.72199543,0.00012722,2]
[355291525,1741057832131,-450.99643393,0.00012722,2]
[355291527,1741057832142,-1229.82,0.00012722,2]
[355291529,1741057832151,-500.0,0.00012722,2]
[355291531,1741057832162,-1033.27,0.00012722,2]
[355291533,1741057832172,-2884.17,0.00012722,2]
[355291535,1741057832183,-578.8,0.00012722,2]
[355291537,1741057832196,-1409.35,0.00012723,2]
[355291539,1741057832206,-1288.74,0.00012723,2]
[355291540,1741057832215,-1242.0,0.00012723,2]
[355291541,1741057832226,-958.28,0.00012723,2]
[355291542,1741057832237,-534.53,0.00012723,2]
[355291543,1741057832248,-2293.60157064,0.00012723,2]
[355291545,1741057832262,-353.33842936,0.00012723,2]
[355291547,1741057832272,-1057.34,0.00012723,2]
[355291550,1741057832282,-500.0,0.00012723,2]
[355291553,1741057832291,-576.99,0.00012723,2]
[355291556,1741057832301,-556.19,0.00012723,2]
[355291559,1741057832311,-500.0,0.00012723,2]
[355291562,1741057832321,-989.97,0.00012723,2]
[355291565,1741057832331,-500.0,0.00012723,2]
[355291567,1741057832340,-875.88,0.00012723,2]
[355291569,1741057832350,-701.66,0.00012723,2]
[355291571,1741057832359,-1476.85,0.00012723,2]
[355291573,1741057832369,-550.89,0.00012723,2]
[355291575,1741057832379,-500.0,0.00012723,2]
[355291577,1741057832388,-564.2,0.00012723,2]
[355291579,1741057832397,-1296.07,0.00012723,2]
[355291581,1741057832406,-656.58,0.00012723,2]
[355291583,1741057832416,-510.70479284,0.00012723,2]
[355291584,1741057832425,-22.00566311,0.00012723,2]
[355291586,1741057832437,-477.99433689,0.00012723,2]
[355291588,1741057832447,-1189.55,0.00012723,2]
[355291590,1741057832457,-187.78662307,0.00012723,2]
[355291592,1741057832466,-500.0,0.00012723,2]
[355291594,1741057832476,-505.84995808,0.00012723,2]
[355291596,1741057832485,-500.0,0.00012723,2]
[355291598,1741057832495,-948.0,0.00012723,2]
[355291600,1741057832505,-879.6724338,0.00012723,2]
[355291603,1741057832517,-309.1675662,0.00012723,2]
[355291605,1741057832528,-698.18,0.00012723,2]
[355291607,1741057832537,-785.89,0.00012723,2]
[355291609,1741057832547,-500.0,0.00012723,2]
[355291611,1741057832556,-500.0,0.00012723,2]
[355291613,1741057832566,-1365.95,0.00012723,2]
[355291615,1741057832575,-503.12403202,0.00012723,2]
[355291617,1741057832585,-644.83,0.00012723,2]
[355291619,1741057832595,-500.0,0.00012723,2]
[355291621,1741057832604,-827.5,0.00012723,2]
[355291623,1741057832618,-1289.06,0.00012723,2]
[355291625,1741057832627,-500.0,0.00012723,2]
[355291627,1741057832637,-621.03,0.00012723,2]
[355291629,1741057832647,-784.62,0.00012723,2]
[355291631,1741057832656,-500.0,0.00012723,2]
[355291633,1741057832666,-1407.96,0.00012723,2]
[355291634,1741057832677,-500.0,0.00012723,2]
[355291635,1741057832687,-534.01549614,0.00012723,2]
[355291636,1741057832697,-707.23,0.00012723,2]
[355291637,1741057832707,-669.79,0.00012723,2]
[355291638,1741057832717,-791.13,0.00012723,2]
[355291639,1741057832727,-738.28,0.00012723,2]
[355291640,1741057832737,-500.0,0.00012723,2]
[355291641,1741057832747,-663.87,0.00012723,2]
[355291642,1741057832757,-500.0,0.00012723,2]
[355291643,1741057832767,-599.91,0.00012723,2]
[355291644,1741057832780,-500.0,0.00012723,2]
[355291645,1741057832789,-608.9,0.00012723,2]
[355291646,1741057832800,-1050.91,0.00012723,2]
[355291647,1741057832810,-755.54,0.00012723,2]
[355291648,1741057832820,-1301.78,0.00012723,2]
[355291649,1741057832830,-307.55662961,0.00012723,2]
[355291650,1741057832855,-399.41337039,0.00012723,2]
[355291651,1741057832866,-500.0,0.00012723,2]
[355291652,1741057832876,-55.85314867,0.00012723,2]
[355291653,1741057832888,-444.14685133,0.00012723,2]
[355291654,1741057832898,-510.11149716,0.00012723,2]
[355291655,1741057832910,-575.10458265,0.00012723,2]
[355291656,1741057832928,-18.63392019,0.00012723,2]
[355291657,1741057832938,-277.43506964,0.00012723,2]
[355291658,1741057832951,-222.56493036,0.00012723,2]
[355291659,1741057832961,-308.48866664,0.00012723,2]
[355291660,1741057832973,-1132.77133336,0.00012723,2]
[355291661,1741057832983,-714.25,0.00012723,2]
[355291662,1741057832993,-771.13,0.00012723,2]
[355291663,1741057833002,-1393.05,0.00012723,2]
[355291664,1741057833013,-507.83,0.00012723,2]
[355291665,1741057833026,-112.86287759,0.00012723,2]
[355291670,1741057837786,-1173.53,0.00012722,2]
[355291671,1741057837796,-2014.67892941,0.00012723,2]
[355291672,1741057837805,-560.83024183,0.00012723,2]
[355291673,1741057837814,-219.24792876,0.00012723,2]
[355291674,1741057837825,-398.50207124,0.00012723,2]
[355291675,1741057837834,-826.51,0.00012723,2]
[355291676,1741057837843,-500.0,0.00012723,2]
[355291677,1741057837852,-153.932095,0.00012723,2]
[355291678,1741057837861,-1344.4,0.00012723,2]
[355291679,1741057837870,-203.89756691,0.00012723,2]
[355291680,1741057837886,-296.10243309,0.00012723,2]
[355291681,1741057837896,-101.07504398,0.00012723,2]
[355291682,1741057837913,-501.29659805,0.00012723,2]
[355291683,1741057837924,-233.96835797,0.00012723,2]
[355291684,1741057837933,-269.04337636,0.00012723,2]
[355291685,1741057837964,-963.96662364,0.00012723,2]
[355291686,1741057837973,-500.0,0.00012723,2]
[355291687,1741057837982,-1350.18802485,0.00012723,2]
[355291862,1741057839779,-594.36,0.00012722,2]
[355291864,1741057839788,-60.39197515,0.00012723,2]
[355291866,1741057839797,-176.47802486,0.00012723,2]
[355291870,1741057839831,-785.38197514,0.00012723,2]
[355291872,1741057839840,-500.0,0.00012723,2]
[355291874,1741057839850,-1035.04,0.00012723,2]
[355291876,1741057839860,-22.05388408,0.00012723,2]
[355291908,1741057840182,-477.94611592,0.00012723,2]
[355291910,1741057840191,-443.09,0.00012723,2]
[355291912,1741057840200,-500.0,0.00012723,2]
[355291914,1741057840211,-756.67,0.00012723,2]
[355291916,1741057840220,-1352.899533,0.00012723,2]
[355291918,1741057840230,-855.08,0.00012723,2]
[355291920,1741057840241,-544.16,0.00012723,2]
[355291922,1741057840250,-1591.8,0.00012723,2]
[355291924,1741057840265,-500.0,0.00012723,2]
[355291926,1741057840275,-500.0,0.00012723,2]
[355291928,1741057840289,-817.51,0.00012723,2]
[355291930,1741057840299,-798.16,0.00012723,2]
[355291932,1741057840308,-724.76,0.00012723,2]
[355291934,1741057840318,-500.0,0.00012723,2]
[355291936,1741057840327,-500.0,0.00012723,2]
[355291938,1741057840336,-1139.59,0.00012723,2]
[355291940,1741057840346,-1666.17,0.00012723,2]
[355291942,1741057840355,-766.42,0.00012723,2]
[355291944,1741057840364,-500.0,0.00012723,2]
[355291946,1741057840373,-1119.3,0.00012723,2]
[355291948,1741057840383,-500.0,0.00012723,2]
[355291949,1741057840393,-500.0,0.00012723,2]
[355291951,1741057840402,-762.76,0.00012723,2]
[355291953,1741057840412,-500.0,0.00012723,2]
[355291955,1741057840421,-978.85,0.00012723,2]
[355291957,1741057840430,-639.13,0.00012723,2]
[355291959,1741057840440,-1752.24,0.00012723,2]
[355291961,1741057840449,-500.0,0.00012723,2]
[355291963,1741057840459,-1208.89,0.00012723,2]
[355291965,1741057840469,-646.49,0.00012723,2]
[355291967,1741057840479,-1293.81,0.00012723,2]
[355291969,1741057840490,-1463.56,0.00012723,2]
[355291971,1741057840499,-500.0,0.00012723,2]
[355291973,1741057840508,-500.0,0.00012723,2]
[355291975,1741057840517,-1617.97,0.00012723,2]
[355291977,1741057840526,-645.87,0.00012723,2]
[355291979,1741057840536,-639.42,0.00012723,2]
[355291980,1741057840545,-580.91,0.00012723,2]
[355291982,1741057840554,-500.0,0.00012723,2]
[355291984,1741057840563,-500.0,0.00012723,2]
[355291986,1741057840573,-576.55,0.00012723,2]
[355291988,1741057840582,-1409.64,0.00012723,2]
[355291990,1741057840591,-1158.85,0.00012723,2]
[355291992,1741057840600,-500.0,0.00012723,2]
[355291994,1741057840609,-1468.4,0.00012723,2]
[355291996,1741057840618,-1256.75,0.00012723,2]
[355291998,1741057840627,-650.7,0.00012723,2]
[355292000,1741057840637,-646.26,0.00012723,2]
[355292002,1741057840646,-500.0,0.00012723,2]
[355292004,1741057840656,-825.52,0.00012723,2]
[355292006,1741057840665,-1158.09,0.00012723,2]
[355292007,1741057840674,-775.17,0.00012723,2]
[355292009,1741057840684,-500.0,0.00012723,2]
[355292011,1741057840693,-728.55,0.00012723,2]
[355292013,1741057840703,-1471.6,0.00012723,2]
[355292015,1741057840712,-500.0,0.00012723,2]
[355292017,1741057840721,-500.0,0.00012723,2]
[355292019,1741057840730,-500.0,0.00012723,2]
[355292021,1741057840739,-500.0,0.00012723,2]
[355292023,1741057840748,-1647.81,0.00012723,2]
[355292025,1741057840757,-1078.92,0.00012723,2]
[355292027,1741057840766,-1510.29,0.00012723,2]
[355292029,1741057840775,-649.45,0.00012723,2]
[355292030,1741057840786,-1018.97,0.00012723,2]
[355292032,1741057840795,-963.78,0.00012723,2]
[355292034,1741057840804,-1272.36,0.00012723,2]
[355292036,1741057840814,-722.22,0.00012723,2]
[355292038,1741057840822,-1725.26,0.00012723,2]
[355292040,1741057840831,-590.72,0.00012723,2]
[355292042,1741057840841,-1007.91,0.00012723,2]
[355292044,1741057840850,-795.07,0.00012723,2]
[355292046,1741057840860,-1174.13,0.00012723,2]
[355292048,1741057840869,-7323.74,0.00012723,2]
[355292050,1741057840878,-503.11712933,0.00012723,2]
[355292051,1741057840887,-673.0,0.00012723,2]
[355292053,1741057840898,-1274.79,0.00012723,2]
[355292055,1741057840908,-3692.95,0.00012723,2]
[355292057,1741057840917,-693.08,0.00012723,2]
[355292059,1741057840926,-614.43,0.00012723,2]
[355292061,1741057840935,-602.21,0.00012723,2]
[355292063,1741057840944,-775.81,0.00012723,2]
[355292065,1741057840953,-2199.66,0.00012723,2]
[355292067,1741057840962,-21769.62,0.00012723,2]
[355292069,1741057840971,-1281.43,0.00012723,2]
[355292071,1741057840980,-500.0,0.00012723,2]
[355292072,1741057840989,-1148.64,0.00012723,2]
[355292074,1741057840999,-630.35,0.00012723,2]
[355292076,1741057841009,-151.04674014,0.00012723,2]
[355292078,1741057841019,-500.0,0.00012723,2]
[355292080,1741057841029,-4160.05,0.00012723,2]
[355292082,1741057841038,-1000.6,0.00012723,2]
[355292084,1741057841047,-1336.94,0.00012723,2]
[355292086,1741057841057,-3184.62,0.00012723,2]
[355292087,1741057841066,-1580.52,0.00012723,2]
[355292089,1741057841075,-1442.71,0.00012723,2]
[355292091,1741057841085,-1698.14,0.00012723,2]
[355292093,1741057841094,-2587.37,0.00012723,2]
[355292095,1741057841104,-1540.57,0.00012723,2]
[355292096,1741057841113,-2925.0,0.00012723,2]
[355292097,1741057841122,-1429.06,0.00012723,2]
[355292098,1741057841132,-5272.56,0.00012723,2]
[355292099,1741057841142,-753.07,0.00012723,2]
[355292100,1741057841152,-1938.03,0.00012723,2]
[355292101,1741057841162,-500.0,0.00012723,2]
[355292102,1741057841172,-6831.51,0.00012723,2]
[355292103,1741057841181,-1360.97,0.00012723,2]
[355292104,1741057841195,-265.63605137,0.00012723,2]
[355292105,1741057841205,-872.99,0.00012723,2]
[355292106,1741057841214,-500.0,0.00012723,2]
[355292107,1741057841224,-2593.63,0.00012723,2]
[355292108,1741057841234,-500.0,0.00012723,2]
[355292109,1741057841244,-500.0,0.00012723,2]
[355292110,1741057841254,-500.0,0.00012723,2]
[355292111,1741057841264,-2024.08,0.00012723,2]
[355292112,1741057841274,-867.21,0.00012723,2]
[355292113,1741057841285,-1061.75,0.00012723,2]
[355292114,1741057841295,-727.1,0.00012723,2]
[355292116,1741057841305,-1430.52,0.00012723,2]
[355292118,1741057841316,-5525.74,0.00012723,2]
[355292120,1741057841325,-500.0,0.00012723,2]
[355292122,1741057841335,-1041.88,0.00012723,2]
[355292124,1741057841344,-881.57,0.00012723,2]
[355292126,1741057841355,-2231.85,0.00012723,2]
[355292129,1741057841365,-701.33,0.00012723,2]
[355292130,1741057841374,-6328.65,0.00012723,2]
[355292133,1741057841383,-516.19034035,0.00012723,2]
[355292134,1741057841393,-1880.42,0.00012723,2]
[355292136,1741057841402,-574.77,0.00012723,2]
[355292138,1741057841411,-500.0,0.00012723,2]
[355292140,1741057841421,-1234.86,0.00012723,2]
[355292142,1741057841430,-1482.59,0.00012723,2]
[355292144,1741057841439,-756.71,0.00012723,2]
[355292146,1741057841449,-500.0,0.00012723,2]
[355292148,1741057841458,-4883.8,0.00012723,2]
[355292150,1741057841468,-1397.31,0.00012723,2]
[355292152,1741057841477,-2990.85,0.00012723,2]
[355292154,1741057841486,-730.73,0.00012723,2]
[355292156,1741057841496,-1143.62,0.00012723,2]
[355292158,1741057841505,-2682.04,0.00012723,2]
[355292160,1741057841515,-1911.21,0.00012723,2]
[355292162,1741057841526,-1742.94,0.00012723,2]
[355292164,1741057841536,-500.0,0.00012723,2]
[355292166,1741057841545,-500.0,0.00012723,2]
[355292168,1741057841554,-2395.36,0.00012723,2]
[355292170,1741057841563,-634.05,0.00012723,2]
[355292172,1741057841573,-500.0,0.00012723,2]
[355292173,1741057841582,-1515.36,0.00012723,2]
[355292175,1741057841591,-2002.63,0.00012723,2]
[355292177,1741057841600,-1677.47,0.00012723,2]